fUSD/lending_fUSD_20250720
["ID","MTS","AMOUNT","RATE_DAILY","PERIOD"]
[373411294,1752989466626,-480.0,0.00019616,2]
[373411295,1752989466635,-151.0,0.00019616,2]
[373411296,1752989466646,-480.0,0.00019616,2]
[373411297,1752989466657,-516.69,0.00019616,2]
[373411298,1752989466666,-480.0,0.00019616,2]
[373411299,1752989466676,-480.0,0.00019616,2]
[373411300,1752989466686,-430.67918872,0.00019616,2]
[373411301,1752989466696,-480.0,0.00019616,2]
[373411302,1752989466706,-848.23,0.00019616,2]
[373411303,1752989466715,-480.0,0.00019616,2]
[373411304,1752989466726,-480.0,0.00019616,2]
[373411305,1752989466736,-519.58000577,0.00019616,2]
[373411306,1752989466746,-480.0,0.00019616,2]
[373411307,1752989466755,-480.0,0.00019616,2]
[373411308,1752989466766,-480.0,0.00019616,2]
[373411309,1752989466776,-480.0,0.00019616,2]
[373411310,1752989466786,-480.0,0.00019616,2]
[373411311,1752989466796,-480.0,0.00019616,2]
[373411312,1752989466805,-528.82,0.00019616,2]
[373411313,1752989466814,-480.0,0.00019616,2]
[373411314,1752989466825,-480.0,0.00019616,2]
[373411315,1752989466835,-595.73370691,0.00019616,2]
[373411316,1752989466845,-480.0,0.00019616,2]
[373411317,1752989466855,-480.0,0.00019616,2]
[373411318,1752989466865,-480.0,0.00019616,2]
[373411319,1752989466876,-781.89,0.00019616,2]
[373411320,1752989466886,-480.0,0.00019616,2]
[373411321,1752989466897,-680.69,0.00019616,2]
[373411322,1752989466907,-480.0,0.00019616,2]
[373411323,1752989466916,-480.0,0.00019616,2]
[373411324,1752989466925,-565.07,0.00019616,2]
[373411325,1752989466935,-693.28,0.00019616,2]
[373411326,1752989466945,-548.871019,0.00019616,2]
[373411327,1752989466954,-548.871019,0.00019616,2]
[373411328,1752989466965,-480.0,0.00019616,2]
[373411329,1752989466974,-498.19165796,0.00019616,2]
[373411330,1752989466985,-482.17,0.00019616,2]
[373411331,1752989466995,-480.0,0.00019616,2]
[373411332,1752989467006,-151.0,0.00019616,2]
[373411333,1752989467015,-175.69080696,0.00019616,2]
[373411334,1752989467024,-514.31346258,0.00019616,2]
[373411335,1752989467037,-1320.33,0.00019616,2]
[373411336,1752989467051,-530.73,0.00019616,2]
[373411337,1752989467060,-480.0,0.00019616,2]
[373411338,1752989467069,-480.0,0.00019616,2]
[373411339,1752989467078,-480.0,0.00019616,2]
[373411340,1752989467088,-480.0,0.00019616,2]
[373411341,1752989467097,-480.0,0.00019616,2]
[373411342,1752989467107,-480.0,0.00019616,2]
[373411343,1752989467116,-480.0,0.00019616,2]
[373411344,1752989467130,-480.0,0.00019616,2]
[373411345,1752989467140,-502.43,0.00019616,2]
[373411346,1752989467151,-2437.85,0.00019616,2]
[373411347,1752989467160,-2705.91,0.00019616,2]
[373411348,1752989467171,-480.0,0.00019616,2]
[373411349,1752989467188,-480.0,0.00019616,2]
[373411350,1752989467198,-480.0,0.00019616,2]
[373411351,1752989467207,-480.0,0.00019616,2]
[373411352,1752989467218,-480.0,0.00019616,2]
[373411353,1752989467229,-480.0,0.00019616,2]
[373411354,1752989467240,-480.0,0.00019616,2]
[373411355,1752989467250,-845.02,0.00019616,2]
[373411356,1752989467260,-487.14,0.00019616,2]
[373411357,1752989467269,-557.8,0.00019616,2]
[373411358,1752989467281,-862.06,0.00019616,2]
[373411359,1752989467292,-480.0,0.00019616,2]
[373411360,1752989467301,-536.7,0.00019616,2]
[373411361,1752989467314,-567.96,0.00019616,2]
[373411362,1752989467323,-480.0,0.00019616,2]
[373411363,1752989467333,-487.95,0.00019616,2]
[373411364,1752989467343,-469.00116107,0.00019616,2]
[373411365,1752989467353,-480.0,0.00019616,2]
[373411366,1752989467363,-920.6,0.00019616,2]
[373411367,1752989467372,-480.0,0.00019616,2]
[373411368,1752989467383,-1882.7,0.00019616,2]
[373411369,1752989467394,-665.71,0.00019616,2]
[373411370,1752989467404,-1170.57,0.00019616,2]
[373411371,1752989467414,-991.0,0.00019616,2]
[373411372,1752989467423,-546.09,0.00019616,2]
[373411373,1752989467433,-507.4,0.00019616,2]
[373411374,1752989467443,-1122.48,0.00019616,2]
[373411375,1752989467453,-480.0,0.00019616,2]
[373411376,1752989467462,-1064.41,0.00019616,2]
[373411377,1752989467471,-480.0,0.00019616,2]
[373411378,1752989467481,-620.05,0.00019616,2]
[373411379,1752989467491,-1197.86,0.00019616,2]
[373411380,1752989467501,-591.75,0.00019616,2]
[373411381,1752989467511,-1679.81,0.00019616,2]
[373411382,1752989467520,-480.0,0.00019616,2]
[373411383,1752989467530,-645.32,0.00019616,2]
[373411384,1752989467540,-151.0,0.00019616,2]
[373411385,1752989467549,-1005.5,0.00019616,2]
[373411386,1752989467559,-354.87245071,0.00019616,2]
[373411387,1752989467568,-1103.07,0.00019616,2]
[373411388,1752989467578,-277.538052,0.00019616,2]
[373411389,1752989467588,-947.41,0.00019616,2]
[373411390,1752989467597,-480.0,0.00019616,2]
[373411391,1752989467607,-480.0,0.00019616,2]
[373411392,1752989467616,-480.0,0.00019616,2]
[373411393,1752989467626,-902.23,0.00019616,2]
[373411394,1752989467635,-823.73,0.00019616,2]
[373411395,1752989467644,-480.0,0.00019616,2]
[373411396,1752989467654,-830.46,0.00019616,2]
[373411397,1752989467666,-151.0,0.00019616,2]
[373411398,1752989467676,-495.66,0.00019616,2]
[373411399,1752989467685,-823.26,0.00019616,2]
[373411400,1752989467695,-480.0,0.00019616,2]
[373411401,1752989467704,-480.0,0.00019616,2]
[373411402,1752989467714,-480.0,0.00019616,2]
[373411403,1752989467724,-2236.11,0.00019616,2]
[373411404,1752989467733,-480.0,0.00019616,2]
[373411405,1752989467743,-822.96,0.00019616,2]
[373411406,1752989467752,-481.9,0.00019616,2]
[373411407,1752989467761,-648.25,0.00019616,2]
[373411408,1752989467771,-480.0,0.00019616,2]
[373411409,1752989467780,-705.02,0.00019616,2]
[373411410,1752989467790,-480.0,0.00019616,2]
[373411411,1752989467799,-1258.95,0.00019616,2]
[373411412,1752989467808,-480.0,0.00019616,2]
[373411413,1752989467817,-492.36,0.00019616,2]
[373411414,1752989467827,-1019.07,0.00019616,2]
[373411415,1752989467836,-480.0,0.00019616,2]
[373411416,1752989467846,-580.94,0.00019616,2]
[373411417,1752989467855,-170.952122,0.00019616,2]
[373411418,1752989467865,-480.0,0.00019616,2]
[373411419,1752989467874,-480.0,0.00019616,2]
[373411420,1752989467884,-480.0,0.00019616,2]
[373411421,1752989467893,-170.952122,0.00019616,2]
[373411422,1752989467903,-480.0,0.00019616,2]
[373411423,1752989467912,-480.0,0.00019616,2]
[373411424,1752989467922,-551.42,0.00019616,2]
[373411425,1752989467932,-2183.79,0.00019616,2]
[373411426,1752989467941,-480.0,0.00019616,2]
[373411427,1752989467951,-721.71,0.00019616,2]
[373411428,1752989467961,-3940.47,0.00019616,2]
[373411429,1752989467970,-1467.13,0.00019616,2]
[373411430,1752989467980,-978.15,0.00019616,2]
[373411431,1752989467990,-735.45,0.00019616,2]
[373411432,1752989467999,-480.0,0.00019616,2]
[373411433,1752989468008,-480.0,0.00019616,2]
[373411434,1752989468018,-513.27,0.00019616,2]
[373411435,1752989468028,-480.0,0.00019616,2]
[373411436,1752989468038,-1837.11,0.00019616,2]
[373411437,1752989468051,-480.0,0.00019616,2]
[373411438,1752989468060,-796.25,0.00019616,2]
[373411439,1752989468070,-618.52,0.00019616,2]
[373411440,1752989468080,-480.0,0.00019616,2]
[373411441,1752989468090,-995.79,0.00019616,2]
[373411442,1752989468100,-604.84,0.00019616,2]
[373411443,1752989468110,-480.0,0.00019616,2]
[373411444,1752989468122,-581.68,0.00019616,2]
[373411445,1752989468132,-1231.45,0.00019616,2]
[373411446,1752989468141,-789.99,0.00019616,2]
[373411447,1752989468151,-480.0,0.00019616,2]
[373411448,1752989468161,-1780.72,0.00019616,2]
[373411449,1752989468170,-1111.42,0.00019616,2]
[373411450,1752989468180,-705.48,0.00019616,2]
[373411451,1752989468190,-227.04,0.00019616,2]
[373411452,1752989468200,-3284.08,0.00019616,2]
[373411453,1752989468209,-8037.86,0.00019616,2]
[373411454,1752989468219,-3107.59,0.00019616,2]
[373411455,1752989468229,-480.0,0.00019616,2]
[373411456,1752989468239,-1037.79,0.00019616,2]
[373411457,1752989468249,-480.0,0.00019616,2]
[373411458,1752989468259,-1098.54,0.00019616,2]
[373411459,1752989468269,-609.77,0.00019616,2]
[373411460,1752989468279,-599.29,0.00019616,2]
[373411461,1752989468288,-480.0,0.00019616,2]
[373411462,1752989468297,-673.73,0.00019616,2]
[373411463,1752989468307,-480.0,0.00019616,2]
[373411464,1752989468316,-661.0,0.00019616,2]
[373411465,1752989468327,-480.0,0.00019616,2]
[373411466,1752989468337,-480.0,0.00019616,2]
[373411467,1752989468346,-480.0,0.00019616,2]
[373411468,1752989468356,-822.08,0.00019616,2]
[373411469,1752989468366,-638.51,0.00019616,2]
[373411470,1752989468375,-480.0,0.00019616,2]
[373411471,1752989468384,-396.99536989,0.00019616,2]
[373411472,1752989468394,-480.0,0.00019616,2]
[373411473,1752989468468,-2821.88,0.00019616,2]
[373411474,1752989468477,-480.0,0.00019616,2]
[373411475,1752989468487,-480.0,0.00019616,2]
[373411476,1752989468497,-3713.37,0.00019616,2]
[373411477,1752989468506,-861.55,0.00019616,2]
[373411478,1752989468515,-1433.3,0.00019616,2]
[373411479,1752989468525,-408.55088095,0.00019616,2]
[373411480,1752989468534,-490.4,0.00019616,2]
[373411481,1752989468544,-480.0,0.00019616,2]
[373411482,1752989468553,-480.0,0.00019616,2]
[373411483,1752989468563,-970.96,0.00019616,2]
[373411484,1752989468573,-480.0,0.00019616,2]
[373411485,1752989468582,-151.0,0.00019616,2]
[373411486,1752989468592,-1110.81,0.00019616,2]
[373411487,1752989468601,-488.83,0.00019616,2]
[373411488,1752989468610,-924.98,0.00019616,2]
[373411489,1752989468620,-151.0,0.00019616,2]
[373411490,1752989468629,-1143.92,0.00019616,2]
[373411491,1752989468639,-480.0,0.00019616,2]
[373411492,1752989468648,-1942.24,0.00019616,2]
[373411493,1752989468658,-1865.06,0.00019616,2]
[373411494,1752989468667,-480.0,0.00019616,2]
[373411495,1752989468677,-480.0,0.00019616,2]
[373411496,1752989468686,-480.0,0.00019616,2]
[373411497,1752989468695,-480.0,0.00019616,2]
[373411498,1752989468705,-2661.07,0.00019616,2]
[373411499,1752989468715,-1386.53,0.00019616,2]
[373411500,1752989468727,-1282.06,0.00019616,2]
[373411501,1752989468737,-561.17051313,0.00019616,2]
[373411502,1752989468748,-662.17,0.00019616,2]
[373411503,1752989468758,-480.0,0.00019616,2]
[373411504,1752989468768,-480.0,0.00019616,2]
[373411505,1752989468777,-548.66,0.00019616,2]
[373411506,1752989468787,-607.57,0.00019616,2]
[373411507,1752989468796,-1091.85,0.00019616,2]
[373411508,1752989468805,-480.0,0.00019616,2]
[373411509,1752989468814,-480.0,0.00019616,2]
[373411510,1752989468823,-302.531764,0.00019616,2]
[373411511,1752989468832,-1464.86,0.00019616,2]
[373411512,1752989468842,-211.370413,0.00019616,2]
[373411513,1752989468851,-483.06,0.00019616,2]
[373411514,1752989468861,-480.0,0.00019616,2]
[373411515,1752989468870,-5718.46,0.00019616,2]
[373411516,1752989468879,-302.531764,0.00019616,2]
[373411517,1752989468891,-480.0,0.00019616,2]
[373411518,1752989468901,-1012.96,0.00019616,2]
[373411519,1752989468911,-480.0,0.00019616,2]
[373411520,1752989468920,-191.68627314,0.00019616,2]
[373411521,1752989468930,-786.49,0.00019616,2]
[373411522,1752989468939,-994.74,0.00019616,2]
[373411523,1752989468948,-635.8,0.00019616,2]
[373411524,1752989468957,-489.06,0.00019616,2]
[373411525,1752989468967,-480.0,0.00019616,2]
[373411526,1752989468976,-650.01,0.00019616,2]
[373411527,1752989468985,-856.56,0.00019616,2]
[373411528,1752989468995,-1960.62,0.00019616,2]
[373411529,1752989469004,-263.3,0.00019616,2]
[373411530,1752989469014,-480.0,0.00019616,2]
[373411531,1752989469023,-480.0,0.00019616,2]
[373411532,1752989469033,-480.0,0.00019616,2]
[373411533,1752989469044,-568.77,0.00019616,2]
[373411534,1752989469054,-484.36,0.00019616,2]
[373411535,1752989469063,-662.08,0.00019616,2]
[373411536,1752989469074,-3491.99,0.00019616,2]
[373411537,1752989469084,-480.0,0.00019616,2]
[373411538,1752989469094,-480.0,0.00019616,2]
[373411539,1752989469105,-2617.19,0.00019616,2]
[373411540,1752989469115,-838.32,0.00019616,2]
[373411541,1752989469125,-579.4119192,0.00019616,2]
[373411542,1752989469134,-562.74,0.00019616,2]
[373411543,1752989469143,-480.0,0.00019616,2]
[373411544,1752989469154,-631.6,0.00019616,2]
[373411545,1752989469164,-480.0,0.00019616,2]
[373411546,1752989469173,-480.0,0.00019616,2]
[373411547,1752989469185,-1016.15,0.00019616,2]
[373411548,1752989469195,-21544.09,0.00019616,2]
[373411549,1752989469206,-600.54,0.00019616,2]
[373411550,1752989469216,-526.14,0.00019616,2]
[373411551,1752989469226,-185.685235,0.00019622,2]
[373411552,1752989469235,-151.0,0.00019622,2]
[373411553,1752989469245,-151.0,0.00019622,2]
[373411554,1752989469255,-150.0,0.00019625,2]
[373411555,1752989469265,-151.0,0.00019636,2]
[373411556,1752989469275,-208.0,0.0001964,2]
[373411557,1752989469285,-259.8365768,0.00019659,2]
[373411558,1752989469296,-500.0,0.00019659,2]
[373411559,1752989469306,-150.0,0.00019671,2]
[373411560,1752989469316,-150.0,0.00019671,2]
[373411561,1752989469325,-1998.0,0.00019671,2]
[373411562,1752989469335,-500.0,0.00019671,2]
[373411563,1752989469345,-1153.0,0.00019671,2]
[373411564,1752989469356,-500.0,0.00019671,2]
[373411565,1752989469365,-604.58324751,0.00019671,2]
[373411566,1752989469376,-500.0,0.00019671,2]
[373411567,1752989469385,-251.53707094,0.00019671,2]
[373411568,1752989469394,-150.0,0.00019671,2]
[373411569,1752989469403,-500.0,0.00019671,2]
[373411570,1752989469413,-200.0,0.00019671,2]
[373411571,1752989469423,-252.31117119,0.00019671,2]
[373411572,1752989469435,-4176.0,0.00019671,2]
[373411573,1752989469444,-596.0,0.00019671,2]
[373411574,1752989469453,-500.0,0.00019671,2]
[373411575,1752989469463,-150.0,0.00019671,2]
[373411576,1752989469474,-500.0,0.00019671,2]
[373411577,1752989469483,-200.0,0.00019671,2]
[373411578,1752989469493,-150.0,0.00019671,2]
[373411579,1752989469502,-500.0,0.00019671,2]
[373411580,1752989469511,-500.0,0.00019671,2]
[373411581,1752989469522,-500.0,0.00019671,2]
[373411582,1752989469531,-500.0,0.00019671,2]
[373411583,1752989469541,-1056.0,0.00019671,2]
[373411584,1752989469551,-150.0,0.00019671,2]
[373411585,1752989469560,-151.0,0.00019673,2]
[373411586,1752989469569,-1851.0135884,0.00019686,2]
[373411587,1752989469579,-450.82588241,0.00019686,2]
[373411588,1752989469588,-150.0,0.00019695,2]
[373411589,1752989469598,-181.61834081,0.00019696,2]
[373411590,1752989469607,-168.0,0.00019697,2]
[373411591,1752989469616,-1100.0,0.000197,7]
[373411592,1752989469626,-596.04,0.000197,2]
[373411593,1752989469635,-1500.0,0.00019712,2]
[373411594,1752989469644,-1900.0,0.00019712,2]
[373411595,1752989469655,-700.0,0.00019712,2]
[373411596,1752989469665,-1000.0,0.00019721,2]
[373411597,1752989469675,-782.2,0.00019724,2]
[373411598,1752989469685,-780.52,0.00019724,2]
[373411599,1752989469695,-4533.89,0.00019725,2]
[373411600,1752989469706,-834.19,0.00019725,2]
[373411601,1752989469715,-782.2,0.00019725,2]
[373411602,1752989469725,-635.94,0.00019725,2]
[373411603,1752989469734,-3057.61,0.00019725,2]
[373411604,1752989469744,-2164.12,0.00019725,2]
[373411605,1752989469753,-1000.0,0.00019725,2]
[373411606,1752989469762,-532.02,0.00019725,2]
[373411607,1752989469771,-1171.57,0.00019725,2]
[373411608,1752989469781,-1137.62,0.00019725,2]
[373411609,1752989469790,-5540.01,0.00019725,2]
[373411610,1752989469799,-570.6,0.00019725,2]
[373411611,1752989469808,-766.07,0.00019725,2]
[373411612,1752989469818,-1465.3,0.00019725,2]
[373411613,1752989469827,-780.52,0.00019725,2]
[373411614,1752989469836,-1005.45,0.00019725,2]
[373411615,1752989469846,-500.0,0.00019725,2]
[373411616,1752989469855,-568.51,0.00019725,2]
[373411617,1752989469864,-568.51,0.00019725,2]
[373411618,1752989469874,-1824.76,0.00019725,2]
[373411619,1752989469884,-1984.3,0.00019725,2]
[373411620,1752989469893,-262.35893,0.00019726,2]
[373411621,1752989469905,-841.61,0.00019726,2]
[373411622,1752989469914,-151.0,0.00019726,2]
[373411623,1752989469924,-151.0,0.00019726,2]
[373411624,1752989469933,-480.0,0.00019726,2]
[373411625,1752989469942,-480.0,0.00019726,2]
[373411626,1752989469952,-480.0,0.00019726,2]
[373411627,1752989469961,-197.42343254,0.00019726,2]
[373411628,1752989469970,-480.0,0.00019726,2]
[373411629,1752989469979,-1309.4,0.00019726,2]
[373411630,1752989469989,-480.0,0.00019726,2]
[373411631,1752989469998,-2661.09,0.00019726,2]
[373411632,1752989470007,-604.79,0.00019726,2]
[373411633,1752989470016,-480.0,0.00019726,2]
[373411634,1752989470025,-151.0,0.00019726,2]
[373411635,1752989470035,-480.0,0.00019726,2]
[373411636,1752989470048,-480.0,0.00019726,2]
[373411637,1752989470057,-480.0,0.00019726,2]
[373411638,1752989470066,-460.66948872,0.00019726,2]
[373411639,1752989470075,-586.1374229,0.00019726,2]
[373411640,1752989470085,-480.0,0.00019726,2]
[373411641,1752989470095,-682.77,0.00019726,2]
[373411642,1752989470104,-480.0,0.00019726,2]
[373411643,1752989470115,-540.39,0.00019726,2]
[373411644,1752989470125,-480.0,0.00019726,2]
[373411645,1752989470134,-480.0,0.00019726,2]
[373411646,1752989470144,-480.0,0.00019726,2]
[373411647,1752989470155,-611.86,0.00019726,2]
[373411648,1752989470164,-480.0,0.00019726,2]
[373411649,1752989470173,-847.28,0.00019726,2]
[373411650,1752989470182,-811.98,0.00019726,2]
[373411651,1752989470191,-480.0,0.00019726,2]
[373411652,1752989470201,-480.0,0.00019726,2]
[373411653,1752989470210,-480.0,0.00019726,2]
[373411654,1752989470219,-572.32,0.00019726,2]
[373411655,1752989470229,-160.650037,0.00019726,2]
[373411656,1752989470238,-480.0,0.00019726,2]
[373411657,1752989470247,-480.0,0.00019726,2]
[373411658,1752989470256,-675.62,0.00019726,2]
[373411659,1752989470265,-480.0,0.00019726,2]
[373411660,1752989470274,-480.0,0.00019726,2]
[373411661,1752989470283,-480.0,0.00019726,2]
[373411662,1752989470293,-480.0,0.00019726,2]
[373411663,1752989470302,-480.0,0.00019726,2]
[373411664,1752989470312,-480.0,0.00019726,2]
[373411665,1752989470321,-480.0,0.00019726,2]
[373411666,1752989470330,-480.0,0.00019726,2]
[373411667,1752989470340,-480.0,0.00019726,2]
[373411668,1752989470349,-753.07,0.00019726,2]
[373411669,1752989470358,-480.0,0.00019726,2]
[373411670,1752989470368,-619.31,0.00019726,2]
[373411671,1752989470382,-1339.47,0.00019726,2]
[373411672,1752989470391,-480.0,0.00019726,2]
[373411673,1752989470403,-1158.17,0.00019726,2]
[373411674,1752989470412,-480.0,0.00019726,2]
[373411675,1752989470421,-480.0,0.00019726,2]
[373411676,1752989470429,-480.0,0.00019726,2]
[373411677,1752989470438,-480.0,0.00019726,2]
[373411678,1752989470455,-593.59,0.00019726,2]
[373411679,1752989470464,-835.59,0.00019726,2]
[373411680,1752989470473,-480.0,0.00019726,2]
[373411681,1752989470481,-151.0,0.00019726,2]
[373411682,1752989470491,-480.0,0.00019726,2]
[373411683,1752989470500,-516.69,0.00019726,2]
[373411684,1752989470509,-485.57690401,0.00019726,2]
[373411685,1752989470518,-480.0,0.00019726,2]
[373411686,1752989470528,-480.0,0.00019726,2]
[373411687,1752989470537,-848.23,0.00019726,2]
[373411688,1752989470546,-480.0,0.00019726,2]
[373411689,1752989470555,-480.0,0.00019726,2]
[373411690,1752989470564,-480.0,0.00019726,2]
[373411691,1752989470574,-480.0,0.00019726,2]
[373411692,1752989470583,-450.33,0.00019726,2]
[373411693,1752989470593,-480.0,0.00019726,2]
[373411694,1752989470602,-480.0,0.00019726,2]
[373411695,1752989470612,-480.0,0.00019726,2]
[373411696,1752989470621,-528.82,0.00019726,2]
[373411697,1752989470630,-480.0,0.00019726,2]
[373411698,1752989470639,-480.0,0.00019726,2]
[373411699,1752989470648,-480.0,0.00019726,2]
[373411700,1752989470660,-480.0,0.00019726,2]
[373411701,1752989470669,-480.0,0.00019726,2]
[373411702,1752989470678,-781.89,0.00019726,2]
[373411703,1752989470687,-480.0,0.00019726,2]
[373411704,1752989470696,-680.69,0.00019726,2]
[373411705,1752989470705,-480.0,0.00019726,2]
[373411706,1752989470715,-565.07,0.00019726,2]
[373411707,1752989470724,-480.0,0.00019726,2]
[373411708,1752989470733,-693.28,0.00019726,2]
[373411709,1752989470742,-548.871019,0.00019726,2]
[373411710,1752989470751,-548.871025,0.00019726,2]
[373411711,1752989470761,-379.27647854,0.00019726,2]
[373411712,1752989470770,-482.17,0.00019726,2]
[373411713,1752989470779,-480.0,0.00019726,2]
[373411714,1752989470788,-151.0,0.00019726,2]
[373411715,1752989470798,-1320.33,0.00019726,2]
[373411716,1752989470807,-530.73,0.00019726,2]
[373411717,1752989470816,-480.0,0.00019726,2]
[373411718,1752989470825,-480.0,0.00019726,2]
[373411719,1752989470834,-480.0,0.00019726,2]
[373411720,1752989470843,-480.0,0.00019726,2]
[373411721,1752989470852,-480.0,0.00019726,2]
[373411722,1752989470862,-480.0,0.00019726,2]
[373411723,1752989470871,-480.0,0.00019726,2]
[373411724,1752989470881,-480.0,0.00019726,2]
[373411725,1752989470891,-502.43,0.00019726,2]
[373411726,1752989470902,-2437.85,0.00019726,2]
[373411727,1752989470911,-2705.91,0.00019726,2]
[373411728,1752989470921,-480.0,0.00019726,2]
[373411729,1752989470930,-480.0,0.00019726,2]
[373411730,1752989470940,-480.0,0.00019726,2]
[373411731,1752989470951,-165.985952,0.00019726,2]
[373411732,1752989470960,-480.0,0.00019726,2]
[373411733,1752989470970,-480.0,0.00019726,2]
[373411734,1752989470979,-480.0,0.00019726,2]
[373411735,1752989470989,-480.0,0.00019726,2]
[373411736,1752989470999,-845.02,0.00019726,2]
[373411737,1752989471009,-487.14,0.00019726,2]
[373411738,1752989471019,-557.8,0.00019726,2]
[373411739,1752989471029,-862.06,0.00019726,2]
[373411740,1752989471039,-480.0,0.00019726,2]
[373411741,1752989471052,-536.7,0.00019726,2]
[373411742,1752989471062,-567.96,0.00019726,2]
[373411743,1752989471071,-480.0,0.00019726,2]
[373411744,1752989471081,-487.95,0.00019726,2]
[373411745,1752989471090,-480.0,0.00019726,2]
[373411746,1752989471100,-920.6,0.00019726,2]
[373411747,1752989471109,-480.0,0.00019726,2]
[373411748,1752989471118,-1882.7,0.00019726,2]
[373411749,1752989471128,-665.71,0.00019726,2]
[373411750,1752989471137,-1170.57,0.00019726,2]
[373411751,1752989471147,-991.0,0.00019726,2]
[373411752,1752989471158,-546.09,0.00019726,2]
[373411753,1752989471168,-507.4,0.00019726,2]
[373411754,1752989471178,-1122.48,0.00019726,2]
[373411755,1752989471188,-255.45175041,0.00019726,2]
[373411756,1752989471197,-1064.41,0.00019726,2]
[373411757,1752989471207,-480.0,0.00019726,2]
[373411758,1752989471217,-620.05,0.00019726,2]
[373411759,1752989471227,-1197.86,0.00019726,2]
[373411760,1752989471236,-591.75,0.00019726,2]
[373411761,1752989471246,-1679.81,0.00019726,2]
[373411762,1752989471256,-480.0,0.00019726,2]
[373411763,1752989471265,-645.32,0.00019726,2]
[373411764,1752989471275,-151.0,0.00019726,2]
[373411765,1752989471284,-1005.5,0.00019726,2]
[373411766,1752989471294,-1103.07,0.00019726,2]
[373411767,1752989471303,-947.41,0.00019726,2]
[373411768,1752989471313,-480.0,0.00019726,2]
[373411769,1752989471322,-480.0,0.00019726,2]
[373411770,1752989471332,-272.77132185,0.00019726,2]
[373411771,1752989471341,-902.23,0.00019726,2]
[373411772,1752989471351,-823.73,0.00019726,2]
[373411773,1752989471360,-480.0,0.00019726,2]
[373411774,1752989471371,-830.46,0.00019726,2]
[373411775,1752989471381,-180.570926,0.00019726,2]
[373411776,1752989471391,-495.66,0.00019726,2]
[373411777,1752989471401,-823.26,0.00019726,2]
[373411778,1752989471410,-480.0,0.00019726,2]
[373411779,1752989471420,-480.0,0.00019726,2]
[373411780,1752989471430,-480.0,0.00019726,2]
[373411781,1752989471440,-2236.11,0.00019726,2]
[373411782,1752989471450,-401.58305906,0.00019726,2]
[373411783,1752989471460,-822.96,0.00019726,2]
[373411784,1752989471470,-481.9,0.00019726,2]
[373411785,1752989471480,-648.25,0.00019726,2]
[373411786,1752989471489,-480.0,0.00019726,2]
[373411787,1752989471500,-705.02,0.00019726,2]
[373411788,1752989471510,-480.0,0.00019726,2]
[373411789,1752989471519,-1258.95,0.00019726,2]
[373411790,1752989471529,-480.0,0.00019726,2]
[373411791,1752989471539,-492.36,0.00019726,2]
[373411792,1752989471548,-1019.07,0.00019726,2]
[373411793,1752989471559,-480.0,0.00019726,2]